bitfinex/quotes_ETHUSD_20250808
["timestamp","ask_amount","ask_price","bid_price","bid_amount"]
[1754617803267,6.52107533,3886.4,3886.3,2.3064]
[1754617803449,3.948,3886.4,3886.3,2.3064]
[1754617804836,0.92212299,3887.6,3886.3,4.66088098]
[1754617805034,3.948,3887.5,3886.4,2.3064]
[1754617805254,0.1288,3887.2,3886.6,0.1288]
[1754617805455,3.948,3887.1,3886.7,2.3064]
[1754617805671,3.948,3887.3,3887.0,0.1288]
[1754617805974,3.948,3887.3,3887.1,2.3064]
[1754617806267,3.948,3887.3,3887.2,0.4533]
[1754617806447,3.948,3887.3,3887.2,0.5821]
[1754617806644,3.948,3887.3,3887.2,2.4352]
[1754617807249,3.948,3887.3,3887.2,1.8531]
[1754617807570,0.1288,3887.5,3887.2,2.3064]
[1754617807780,3.948,3887.4,3887.3,0.4533]
[1754617808189,3.948,3887.5,3887.3,4.87884663]
[1754617808468,3.948,3887.7,3887.4,1.8531]
[1754617808673,3.948,3887.7,3887.5,0.4533]
[1754617809059,3.948,3887.7,3887.3,0.3662285]
[1754617809245,3.948,3887.7,3887.6,2.142635]
[1754617810502,3.948,3887.7,3887.6,1.8531]
[1754617811307,0.39229833,3887.9,3887.6,5.113451]
[1754617811594,0.39229833,3887.9,3887.7,2.3064]
[1754617811959,0.39229833,3887.9,3887.8,1.8531]
[1754617812765,0.39229833,3887.9,3887.8,4.87854877]
[1754617813160,0.39229833,3887.9,3887.8,5.00734877]
[1754617813385,0.39229833,3887.9,3887.8,2.4352]
[1754617813565,3.948,3888.3,3887.8,5.00732495]
[1754617813783,3.948,3888.3,3887.9,6.83205854]
[1754617813986,3.948,3888.3,3888.1,0.1288]
[1754617814163,3.948,3888.3,3888.2,2.3614]
[1754617814978,0.1288,3888.6,3888.2,1.9138]
[1754617815172,3.947,3888.5,3888.1,0.1288]
[1754617815400,3.947,3888.5,3888.3,1.9138]
[1754617815804,2.57188416,3888.2,3887.9,4.25999999]
[1754617816104,2.57201646,3888.0,3887.9,4.25999999]
[1754617816299,0.1288,3888.0,3887.9,4.25999999]
[1754617816499,3.947,3888.0,3887.9,4.25999999]
[1754617816705,0.1288,3888.1,3887.9,4.25999999]
[1754617816862,3.947,3888.0,3887.9,4.25999999]
[1754617817505,3.947,3888.0,3887.9,6.17379999]
[1754617818063,0.1288,3888.3,3887.9,6.62139999]
[1754617818279,3.947,3888.2,3888.0,2.3614]
[1754617818497,3.947,3888.2,3888.0,1.9138]
[1754617818703,2.57175187,3888.4,3888.1,4.25999999]
[1754617818902,3.947,3888.3,3888.1,4.25999999]
[1754617819105,3.947,3888.3,3888.1,6.17379999]
[1754617819262,0.1288,3888.5,3888.2,1.9138]
[1754617819469,3.947,3888.5,3888.2,2.3614]
[1754617819666,3.947,3888.5,3888.3,1.9138]
[1754617819866,3.947,3888.5,3888.1,4.38879999]
[1754617819867,3.947,3888.5,3888.4,1.9138]
[1754617820167,3.947,3888.5,3888.4,2.3614]
[1754617820361,3.947,3888.5,3888.4,1.9138]
[1754617820566,0.1308,3888.7,3888.4,1.9138]
[1754617820766,3.947,3888.6,3888.5,1.9138]
[1754617821200,3.947,3888.6,3888.2,1.9138]
[1754617821516,3.947,3888.6,3888.2,2.3614]
[1754617821810,3.947,3888.6,3888.3,1.9138]
[1754617822011,0.1308,3888.7,3888.3,2.3614]
[1754617822168,3.947,3888.5,3888.4,1.9138]
[1754617822568,3.947,3888.5,3888.4,2.3614]
[1754617823008,0.002,3888.7,3888.4,8.7455449]
[1754617823215,0.002,3888.7,3888.5,15.76588287]
[1754617823518,0.002,3888.7,3888.6,0.1288]
[1754617823817,0.002,3888.7,3888.6,6.75019999]
[1754617824725,0.002,3888.7,3888.6,4.38879999]
[1754617825683,0.002,3888.7,3888.6,6.75019999]
[1754617826319,0.002,3888.7,3888.6,4.38879999]
[1754617826514,0.002,3888.7,3888.6,4.25999999]
[1754617826701,0.002,3888.7,3888.6,6.17379999]
[1754617827318,0.002,3888.7,3888.6,6.62139999]
[1754617827505,0.002,3888.7,3888.6,9.32181959]
[1754617827909,0.002,3888.7,3888.6,12.32181959]
[1754617830847,0.002,3888.7,3888.6,4.38879999]
[1754617831344,0.4482,3888.7,3888.2,3.0]
[1754617831555,0.4462,3888.6,3888.4,0.1288]
[1754617831733,0.002,3888.7,3888.4,0.1288]
[1754617832763,0.002,3888.7,3888.5,1.9138]
[1754617832972,0.002,3888.7,3888.5,2.3614]
[1754617833120,0.002,3888.7,3888.6,1.9138]
[1754617833320,0.002,3888.7,3888.6,2.0426]
[1754617833862,0.002,3888.7,3888.6,0.1288]
[1754617834244,0.002,3888.7,3888.6,4.6142196]
[1754617834447,0.002,3888.7,3888.6,5.0618196]
[1754617834691,0.002,3888.7,3888.6,2.0426]
[1754617835818,0.002,3888.7,3888.6,2.4902]
[1754617836216,0.002,3888.7,3888.6,6.75019999]
[1754617836462,0.002,3888.7,3888.6,8.87421959]
[1754617836633,0.002,3888.7,3888.6,12.32181959]
[1754617837639,0.002,3888.7,3888.6,16.26681959]
[1754617842276,0.042,3888.9,3888.8,9.82948733]
[1754617842450,0.042,3888.9,3888.8,13.77348733]
[1754617842651,0.042,3888.9,3888.8,16.13488733]
[1754617843193,0.042,3888.9,3888.8,16.26368733]
[1754617843680,0.042,3888.9,3888.8,27.11908076]
[1754617844691,0.042,3888.9,3888.8,27.30933841]
[1754617845459,0.042,3888.9,3888.8,16.45394498]
[1754617846365,0.002,3889.5,3888.8,12.19594499]
[1754617846570,0.002,3889.5,3889.4,13.55528408]
[1754617846762,0.002,3889.5,3889.4,24.75628407]
[1754617846957,0.002,3889.5,3889.4,27.02538407]
[1754617847914,1e-08,3889.5,3889.4,23.31738408]
[1754617848111,50.0,3890.0,3889.9,5.57076017]
[1754617848315,41.38335854,3890.0,3889.9,22.6382536]
[1754617848725,41.38335854,3890.0,3889.9,5.57076017]
[1754617848942,41.38335854,3890.0,3889.9,9.51376017]
[1754617849093,41.38335854,3890.0,3889.9,11.32706017]
[1754617849301,41.38335854,3890.0,3889.9,9.51376017]
[1754617849690,41.38335854,3890.0,3889.9,11.78286017]
[1754617850698,0.002,3890.6,3890.1,2.570628]
[1754617851042,0.002,3890.6,3890.1,9.512628]
[1754617851199,0.002,3890.6,3890.1,11.910528]
[1754617852728,0.002,3890.6,3890.1,7.968528]
[1754617853036,0.002,3890.6,3890.1,11.454728]
[1754617853335,0.002,3890.6,3890.1,11.910528]
[1754617854301,1e-08,3890.2,3890.1,17.23749485]
[1754617854499,1e-08,3890.2,3890.1,16.84952052]
[1754617854696,1e-08,3890.2,3890.1,16.71852799]
[1754617855731,1e-08,3890.2,3890.1,16.16852799]
[1754617856426,1e-08,3890.2,3890.1,16.71852799]
[1754617857754,1e-08,3890.2,3890.1,15.71172799]
[1754617858133,1e-08,3890.2,3890.1,16.16752799]
[1754617860354,1e-08,3890.2,3890.1,13.89842799]
[1754617861253,1e-08,3890.2,3890.1,15.71172799]
[1754617861638,1e-08,3890.2,3890.1,9.95742799]
[1754617861827,1e-08,3890.2,3890.1,13.89842799]
[1754617862033,1e-08,3890.2,3890.1,15.71172799]
[1754617862769,1e-08,3890.2,3890.1,13.89842799]
[1754617863866,1e-08,3890.2,3890.1,15.71172799]
[1754617864368,1e-08,3890.2,3890.1,16.16752799]
[1754617864578,1e-08,3890.2,3890.1,15.71172799]
[1754617864741,1e-08,3890.2,3890.1,24.84199337]
[1754617865946,0.002,3890.6,3890.5,2.5703637]
[1754617866146,0.002,3890.6,3890.5,9.5113637]
[1754617866348,0.475,3890.6,3890.5,9.6401637]
[1754617866549,0.475,3890.6,3890.5,5.6991637]
[1754617866743,0.475,3890.6,3890.5,9.6391637]
[1754617867074,0.002,3890.6,3890.5,9.6391637]
[1754617867444,0.002,3890.6,3890.5,18.76942908]
[1754617868073,0.002,3890.6,3890.5,23.02742906]
[1754617868671,0.002,3890.6,3890.5,24.84072906]
[1754617869374,0.002,3890.6,3890.5,23.02742906]
[1754617869974,0.002,3890.6,3890.5,24.84072906]
[1754617870856,0.002,3890.6,3890.5,25.29652906]
[1754617872272,0.002,3890.6,3890.5,24.84072906]
[1754617872791,0.002,3890.6,3890.5,25.29652906]
[1754617873361,1e-08,3890.6,3890.5,25.84652906]
[1754617873863,1e-08,3890.6,3890.5,33.25450339]
[1754617874359,1e-08,3890.6,3890.5,28.47072906]
[1754617874565,1e-08,3890.6,3890.5,35.11772906]
[1754617874764,1e-08,3890.6,3890.5,32.85932906]
[1754617877816,0.04,3890.9,3890.8,5.57016551]
[1754617878018,1e-08,3890.9,3890.8,19.18943089]
[1754617878314,0.04,3891.9,3891.7,5.56957113]
[1754617878515,0.04,3891.9,3891.7,18.76763651]
[1754617879183,0.24,3892.1,3892.0,2.56937307]
[1754617879384,1.9384,3892.3,3892.2,5.56924104]
[1754617879581,1.9384,3892.3,3892.2,9.50824104]
[1754617879810,1.9384,3892.3,3892.2,7.0678]
[1754617880116,1.9384,3892.3,3892.2,9.63704104]
[1754617880498,1.9384,3892.3,3892.2,7.0678]
[1754617880716,0.002,3892.6,3892.3,5.56917503]
[1754617880915,1.9404,3892.6,3892.3,5.56917503]
[1754617881321,2.3884,3892.6,3892.3,5.56917503]
[1754617881893,2.38640001,3892.4,3892.3,3.0]
[1754617882087,2.38640001,3892.4,3892.3,2.56917503]
[1754617882294,2.38640001,3892.4,3892.3,6.939]
[1754617884112,0.44800001,3892.4,3892.3,6.939]
[1754617884717,1e-08,3892.4,3892.3,9.50817503]
[1754617885144,1e-08,3892.4,3892.3,6.939]
[1754617885527,0.44800001,3892.4,3892.3,6.939]
[1754617886144,0.44800001,3892.4,3892.3,3.0]
[1754617886345,2.38640001,3892.4,3892.3,3.0]
[1754617886950,2.56917503,3892.3,3892.1,6.938]
[1754617887245,4.95564104,3892.2,3892.1,3.0]
[1754617887449,2.56930705,3892.1,3892.0,4.25799998]
[1754617887645,5.75779568,3892.1,3892.0,4.25799998]
[1754617887850,5.75779568,3892.1,3891.8,4.0668]
[1754617887851,2.56974063,3891.5,3891.4,3.938]
[1754617888062,2.56980228,3891.4,3891.3,3.938]
[1754617888222,2.56985571,3891.3,3890.9,3.0]
[1754617888419,2.3864,3891.2,3890.7,4.25799998]
[1754617888619,2.56987839,3891.3,3890.1,0.04]
[1754617888837,2.57030905,3890.6,3890.2,3.938]
[1754617889033,2.3864,3890.5,3890.2,3.938]
[1754617889318,2.3864,3890.4,3890.3,0.1288]
[1754617889526,4.95682977,3890.4,3890.3,0.1288]
[1754617889819,2.57056192,3890.2,3890.1,0.04]
[1754617890522,4.95696192,3890.2,3890.1,0.04]
[1754617890722,2.3864,3890.2,3890.1,0.04]
[1754617890915,0.448,3890.2,3890.1,0.04]
[1754617891116,4.95696192,3890.2,3890.1,0.04]
[1754617893047,5.72258219,3890.2,3890.1,0.04]
[1754617893242,5.85138219,3890.2,3890.1,0.04]
[1754617894656,2.3864,3890.6,3890.1,0.04]
[1754617894958,2.69896327,3890.9,3890.3,0.1288]
[1754617895155,2.57031042,3890.6,3890.3,0.1288]
[1754617895330,2.57037455,3890.5,3890.3,0.1288]
[1754617895530,4.95670961,3890.6,3890.4,4.25799998]
[1754617895834,2.5703637,3890.5,3890.4,4.25799998]
[1754617897334,4.9567637,3890.5,3890.4,4.25799998]
[1754617897639,2.57031195,3890.6,3890.4,4.25799998]
[1754617897841,3.0183637,3890.5,3890.4,4.25799998]
[1754617898064,4.9567637,3890.5,3890.4,4.25799998]
[1754617898454,1.9384,3890.8,3890.4,4.25799998]
[1754617898643,2.69895296,3890.9,3890.4,4.25799998]
[1754617898644,0.1288,3890.9,3890.4,4.25799998]
[1754617898844,3.939,3891.1,3890.7,0.1288]
[1754617899045,3.939,3891.2,3890.9,0.1288]
[1754617899250,3.939,3891.6,3891.0,1.8366]
[1754617899468,3.939,3891.6,3891.1,0.1288]
[1754617899669,0.002,3891.7,3891.3,0.1288]
[1754617899991,2.57159187,3891.7,3891.3,0.1288]
[1754617900281,2.57158681,3891.7,3891.3,0.1288]
[1754617900447,0.002,3891.7,3891.3,0.1288]
[1754617900847,0.002,3891.7,3891.4,1.8366]
[1754617901054,0.002,3891.7,3891.6,0.1288]
[1754617901463,0.002,3891.7,3891.6,1.9654]
[1754617901662,0.002,3891.7,3891.6,4.53503716]
[1754617901868,0.002,3891.7,3891.6,4.98363716]
[1754617902571,0.002,3891.7,3891.6,1.9654]
[1754617902771,0.002,3891.7,3891.6,2.414]
[1754617903179,0.002,3891.7,3891.6,1.9654]
[1754617904245,0.002,3891.7,3891.6,0.1288]
[1754617904742,2.3735,3891.7,3891.4,3.939]
[1754617904942,0.002,3891.7,3891.5,0.1288]
[1754617905557,0.002,3891.7,3891.6,1.9833]
[1754617905755,0.002,3891.7,3891.5,0.1288]
[1754617906480,0.002,3891.7,3891.6,2.56963716]
[1754617906644,0.002,3891.7,3891.6,5.11043716]
[1754617906846,0.002,3891.7,3891.6,2.5408]
[1754617907171,0.002,3891.7,3891.6,0.1288]
[1754617907371,0.002,3891.7,3891.6,4.38679998]
[1754617907791,2.57157113,3891.7,3891.6,4.38679998]
[1754617907991,2.57157113,3891.7,3891.6,4.25799998]
[1754617908187,3.03477113,3891.7,3891.6,4.25799998]
[1754617908478,4.94307113,3891.7,3891.6,4.25799998]
[1754617909148,3.03477113,3891.7,3891.6,4.25799998]
[1754617909775,2.56963716,3891.6,3891.5,0.1288]
[1754617909989,0.4652,3891.7,3891.3,3.0]
[1754617910147,0.002,3891.7,3891.4,0.1288]
[1754617910486,2.56970319,3891.5,3891.4,0.1288]
[1754617912580,2.56995929,3891.2,3890.7,3.938]
[1754617912785,2.56995929,3891.2,3891.1,0.1288]
[1754617913992,2.56976923,3891.4,3891.1,0.1288]
[1754617914164,4.4012,3891.5,3891.1,0.1288]
[1754617914350,2.56990131,3891.2,3891.1,0.1288]
[1754617915294,4.94140131,3891.2,3891.1,0.1288]
[1754617915499,4.94140131,3891.2,3890.5,0.001]
[1754617915500,2.57015719,3890.9,3890.5,3.939]
[1754617915699,2.57015719,3890.9,3890.5,5.9223]
[1754617915901,2.57018152,3890.8,3890.5,5.9223]
[1754617916127,2.57018152,3890.8,3890.7,0.1288]
[1754617917128,2.57023157,3890.7,3890.6,3.0]
[1754617917332,3.938,3891.1,3890.5,0.001]
[1754617917333,2.57029764,3890.6,3890.5,0.001]
[1754617918612,2.57029764,3890.6,3890.5,1.9843]
[1754617919321,2.57029764,3890.6,3890.5,0.001]
[1754617920822,3.16209661,3891.0,3890.5,0.001]
[1754617921118,2.57029764,3890.6,3890.5,0.001]
[1754617921691,4.94179764,3890.6,3890.5,0.001]
[1754617921990,6.09967627,3890.6,3890.5,0.001]
[1754617922536,4.32017627,3890.6,3890.5,0.001]
[1754617922694,6.22847627,3890.6,3890.5,0.001]
[1754617924402,4.32017627,3890.6,3890.5,0.001]
[1754617924602,3.85697627,3890.6,3890.5,0.001]
[1754617924915,6.22847627,3890.6,3890.5,0.001]
[1754617925821,2.69909764,3890.6,3890.5,0.001]
[1754617926355,3.16229764,3890.6,3890.5,0.001]
[1754617926567,5.07059764,3890.6,3890.5,0.001]
[1754617927258,2.69909764,3890.6,3890.5,0.001]
[1754617927832,3.16229764,3890.6,3890.5,0.001]
[1754617928046,3.67902627,3890.6,3890.5,0.001]
[1754617928221,6.63709764,3890.6,3890.5,0.001]
[1754617928842,9.00859764,3890.6,3890.5,0.001]
[1754617929038,7.10029764,3890.6,3890.5,0.001]
[1754617929650,6.63709764,3890.6,3890.5,0.001]
[1754617930360,0.1288,3890.9,3890.5,4.25899998]
[1754617930561,2.57029764,3890.6,3890.5,6.24229998]
[1754617930762,4.0668,3890.9,3890.5,6.24229998]
[1754617930951,3.938,3890.8,3890.6,2.5408]
[1754617931264,2.57016648,3890.8,3890.7,1.9833]
[1754617931767,6.50815449,3890.9,3890.7,2.412]
[1754617931950,2.57016551,3890.8,3890.7,1.9833]
[1754617932268,3.938,3890.9,3890.8,1.9833]
[1754617932269,6.63690803,3890.9,3890.8,1.9833]
[1754617932563,0.1288,3891.2,3890.8,2.412]
[1754617932763,6.63671381,3891.2,3890.8,1.9833]
[1754617932932,0.1288,3891.2,3890.9,0.4287]
[1754617933129,3.938,3891.1,3891.0,1.9833]
[1754617933365,3.938,3891.1,3891.0,2.412]
[1754617933764,3.938,3891.3,3891.0,2.412]
[1754617933963,3.938,3891.3,3891.0,1.9833]
[1754617934181,4.0668,3891.4,3891.1,0.4408]
[1754617934367,4.0668,3891.4,3891.2,2.3949]
[1754617934563,3.938,3891.4,3891.2,1.9541]
[1754617934765,3.938,3891.4,3891.3,0.4408]
[1754617935136,3.938,3891.4,3891.3,2.3949]
[1754617935434,2.69845267,3891.6,3891.3,2.3949]
[1754617935639,3.938,3891.5,3891.4,6.21209998]
[1754617935967,6.50770319,3891.5,3891.4,6.21209998]
[1754617936345,6.50770319,3891.5,3891.4,4.25799998]
[1754617938741,6.50770319,3891.5,3891.4,6.21209998]
[1754617939440,2.56970319,3891.5,3891.4,4.25799998]
[1754617939640,6.50770319,3891.5,3891.4,4.25799998]
[1754617941374,2.56970319,3891.5,3891.4,4.25799998]
[1754617941554,6.50670319,3891.5,3891.4,4.25799998]
[1754617941756,6.50670319,3891.5,3891.4,6.21209998]
[1754617942579,3.937,3891.5,3891.4,6.21209998]
[1754617942745,6.50670319,3891.5,3891.4,6.65289998]
[1754617943476,0.002,3891.7,3891.4,6.21209998]
[1754617943675,6.50670319,3891.5,3891.4,6.21209998]
[1754617944859,0.002,3891.7,3891.4,4.25799998]
[1754617945081,2.56964815,3891.6,3891.5,2.3949]
[1754617945379,6.50664815,3891.6,3891.5,2.3949]
[1754617945683,2.57159109,3891.7,3891.5,2.3949]
[1754617945888,2.57159109,3891.7,3891.6,6.65289998]
[1754617946088,6.50859109,3891.7,3891.6,6.65289998]
[1754617946243,3.939,3891.7,3891.6,6.65289998]
[1754617946951,0.002,3891.7,3891.6,6.21209998]
[1754617947150,0.002,3891.7,3891.6,6.78169998]
[1754617947858,0.002,3891.7,3891.6,9.35133714]
[1754617948065,0.002,3891.7,3891.6,6.78169998]
[1754617948606,0.002,3891.7,3891.6,9.35133714]
[1754617948784,0.002,3891.7,3891.6,6.78169998]
[1754617951794,0.002,3891.7,3891.6,4.38679998]
[1754617952180,2.57157113,3891.7,3891.6,4.25799998]
[1754617953386,0.002,3891.7,3891.6,4.25799998]
[1754617954521,2.57157113,3891.7,3891.6,4.25799998]
[1754617954687,2.56963716,3891.6,3891.5,0.1288]
[1754617954891,6.50563716,3891.6,3891.5,0.1288]
[1754617955101,2.56976923,3891.4,3891.3,4.25799998]
[1754617957619,2.56971461,3891.5,3891.3,4.25799998]
[1754617957801,2.56971461,3891.5,3891.3,6.21209998]
[1754617958317,2.56971461,3891.5,3891.4,1.9541]
[1754617958475,6.50569071,3891.6,3891.4,1.9541]
[1754617958671,0.002,3891.7,3891.4,1.9541]
[1754617958872,0.002,3891.7,3891.5,0.4408]
[1754617959078,0.002,3891.7,3891.6,4.38679998]
[1754617959298,0.002,3891.7,3891.6,6.34089998]
[1754617959501,0.002,3891.7,3891.6,6.78169998]
[1754617963481,0.002,3891.7,3891.6,12.35133714]
[1754617963679,0.002,3891.7,3891.6,25.41715104]
[1754617964503,0.002,3892.1,3891.9,3.0]
[1754617964797,0.002,3892.1,3892.0,6.50437307]
[1754617965012,0.002,3892.1,3892.0,8.84377307]
[1754617965213,0.002,3892.1,3892.0,8.97257307]
[1754617966524,0.002,3892.1,3892.0,6.4032]
[1754617966936,0.002,3892.1,3892.0,4.0638]
[1754617967141,0.002,3892.1,3892.0,5.9708]
[1754617967320,0.002,3892.1,3892.0,2.0358]
[1754617967819,0.002,3892.1,3892.0,2.4682]
[1754617968321,0.002,3892.1,3892.0,0.1288]
[1754617968526,0.002,3892.1,3892.0,2.4682]
[1754617969638,0.002,3892.1,3892.0,6.72419998]
[1754617969836,0.002,3892.1,3892.0,10.65919998]
[1754617972517,0.002,3892.1,3892.0,13.22857305]
[1754617972712,0.002,3892.1,3892.0,10.65919998]
[1754617973227,0.002,3892.1,3892.0,13.22857305]
[1754617973953,0.002,3892.1,3892.0,16.22857305]
[1754617974115,0.002,3892.1,3892.0,11.97257307]
[1754617974518,0.002,3892.1,3892.0,16.22857305]
[1754617976157,0.002,3892.1,3892.0,15.79617305]
[1754617976664,0.002,3892.1,3892.0,13.88917305]
[1754617976827,0.002,3892.1,3892.0,15.79617305]
[1754617977259,0.002,3892.1,3892.0,13.88917305]
[1754617977464,0.002,3892.1,3892.0,11.31979998]
[1754617977667,0.002,3892.1,3892.0,13.88917305]
[1754617978023,0.002,3892.1,3892.0,15.79617305]
[1754617978223,0.002,3892.1,3892.0,13.88917305]
[1754617978718,0.002,3892.1,3892.0,15.79617305]
[1754617978925,0.002,3892.1,3892.0,16.22857305]
[1754617980255,0.002,3892.1,3892.0,9.95417305]
[1754617980443,0.002,3892.1,3892.0,13.88717305]
[1754617980760,0.002,3892.1,3892.0,15.79417305]
[1754617981056,0.002,3892.1,3892.0,13.65719998]
[1754617981259,0.002,3892.1,3892.0,11.31779998]
[1754617981556,2.2002,3892.1,3892.0,7.38479998]
[1754617981855,2.2002,3892.1,3892.0,4.25599998]
[1754617982427,0.002,3892.1,3892.0,4.25599998]
[1754617982633,0.002,3892.1,3892.0,4.38479998]
[1754617982835,0.002,3892.1,3892.0,8.31779998]
[1754617983052,0.002,3892.1,3892.0,10.65719998]
[1754617983264,0.002,3892.1,3892.0,10.22479998]
[1754617983761,0.002,3892.1,3892.0,13.22657305]
[1754617984054,0.002,3892.1,3892.0,10.22479998]
[1754617984261,0.002,3892.1,3892.0,13.22657305]
[1754617984461,0.002,3892.1,3892.0,25.35738695]
[1754617984944,0.002,3892.1,3892.0,16.22657305]
[1754617985463,0.002,3892.1,3892.0,7.38479998]
[1754617986159,0.002,3892.1,3892.0,11.31779998]
[1754617987864,0.002,3892.1,3892.0,8.31779998]
[1754617988173,0.002,3892.1,3892.0,4.38479998]
[1754617988973,0.4664,3892.1,3892.0,4.38479998]
[1754617989349,2.3057,3892.1,3892.0,4.38479998]
[1754617989696,4.87500705,3892.1,3892.0,4.25599998]
[1754617989853,5.39858598,3892.1,3892.0,4.25599998]
[1754617990694,2.56950511,3891.8,3891.7,4.25599998]
[1754617990857,4.87320511,3891.8,3891.7,4.25599998]
[1754617991177,6.05575622,3891.8,3891.7,4.25599998]
[1754617993351,2.56957113,3891.7,3891.6,0.001]
[1754617993551,8.91037113,3891.7,3891.6,0.001]
[1754617996957,9.01325513,3891.7,3891.6,0.001]
[1754617997180,11.45980966,3891.7,3891.6,0.001]
[1754617997392,11.46080966,3891.7,3891.6,0.001]
[1754618000783,2.56976923,3891.4,3891.2,0.001]
[1754618000986,16.31238313,3891.4,3891.2,0.001]
[1754618001291,18.72118313,3891.4,3891.2,0.001]
[1754618001457,21.1978214,3891.4,3891.2,0.001]
[1754618004284,12.0670075,3891.4,3891.2,0.001]
[1754618007990,9.1082075,3891.4,3891.2,0.001]
[1754618008195,6.73446523,3891.4,3891.2,0.001]
[1754618008397,2.80146523,3891.4,3891.2,0.001]
[1754618008694,0.1288,3891.4,3891.3,2.3532]
[1754618008992,6.63156923,3891.4,3891.3,2.3532]
[1754618012299,4.0618,3891.4,3891.3,0.001]
[1754618012480,6.63156923,3891.4,3891.3,2.3532]
[1754618017687,0.002,3891.7,3891.3,2.3532]
[1754618017688,0.002,3891.7,3891.3,2.58872]
[1754618017894,0.002,3891.7,3891.4,2.3522]
[1754618017895,6.5036279,3891.7,3891.4,2.3522]
[1754618018090,3.934,3891.7,3891.3,0.23652]
[1754618018290,3.934,3891.7,3891.5,2.3522]
[1754618018588,3.934,3891.7,3891.6,2.3522]
[1754618018790,6.50357113,3891.7,3891.6,2.3522]
[1754618019379,3.934,3891.7,3891.6,2.3522]
[1754618019577,0.002,3891.7,3891.6,2.3522]
[1754618019812,0.002,3891.7,3891.6,2.58752]
[1754618020395,0.002,3891.7,3891.6,2.481]
[1754618021206,0.002,3891.7,3891.6,0.1288]
[1754618021407,3.934,3891.7,3891.4,1.8776]
[1754618021617,3.934,3891.7,3891.3,0.1298]
[1754618021815,6.50359236,3891.7,3891.4,2.3522]
[1754618022108,6.50359236,3891.7,3891.5,1.8776]
[1754618022288,3.934,3891.7,3891.6,1.8776]
[1754618022493,3.934,3891.7,3891.6,2.3522]
[1754618023518,0.002,3891.7,3891.6,2.3522]
[1754618025014,2.57157113,3891.7,3891.6,2.3522]
[1754618025606,3.933,3891.7,3891.6,2.3522]
[1754618026008,3.933,3891.7,3891.6,2.4499]
[1754618026522,6.50257113,3891.7,3891.6,2.4499]
[1754618026894,6.50257113,3891.7,3891.6,1.9753]
[1754618027292,3.933,3891.7,3891.6,1.9753]
[1754618027525,6.50257113,3891.7,3891.6,1.9753]
[1754618027735,6.50257113,3891.7,3891.6,2.4073]
[1754618028240,2.56965683,3891.6,3891.3,0.1298]
[1754618028433,2.69856923,3891.4,3891.3,0.001]
[1754618028803,5.12426923,3891.4,3891.3,0.001]
[1754618030141,3.26416123,3891.4,3891.3,0.001]
[1754618030306,4.33285115,3891.4,3891.3,0.001]
[1754618030506,4.22995915,3891.4,3891.3,0.001]
[1754618030715,6.19295915,3891.4,3891.3,0.001]
[1754618030938,3.76725915,3891.4,3891.3,0.001]
[1754618031093,7.69825915,3891.4,3891.3,0.001]
[1754618031860,2.69856923,3891.4,3891.3,1.9763]
[1754618032009,6.62956923,3891.4,3891.3,2.4083]
[1754618032413,6.62956923,3891.4,3891.3,1.9763]
[1754618033347,2.69856923,3891.4,3891.3,1.9763]
[1754618033641,3.931,3891.5,3891.3,2.5371]
[1754618033818,3.931,3891.5,3891.3,0.1298]
[1754618034026,3.931,3891.5,3891.4,2.4073]
[1754618034234,3.931,3891.6,3891.4,2.4073]
[1754618034545,3.931,3891.6,3891.5,4.702]
[1754618034730,0.002,3891.7,3891.5,4.702]
[1754618034934,0.002,3891.7,3891.6,1.9753]
[1754618035229,2.57157113,3891.7,3891.6,2.4073]
[1754618035429,0.002,3891.7,3891.6,2.4073]
[1754618036013,2.57157113,3891.7,3891.6,2.4073]
[1754618040345,2.57157113,3891.7,3891.6,1.9753]
[1754618040851,0.002,3891.7,3891.6,2.4073]
[1754618042254,2.57157113,3891.7,3891.6,1.9753]
[1754618042459,2.56963716,3891.6,3891.5,4.27]
[1754618046478,2.56970319,3891.5,3891.4,4.27]
[1754618046642,6.49970319,3891.5,3891.4,4.27]
[1754618046834,3.93,3891.5,3891.4,4.27]
[1754618047039,6.49970319,3891.5,3891.4,6.2453]
[1754618047368,6.49970319,3891.5,3891.4,6.6773]
[1754618048160,3.93,3891.5,3891.4,6.6773]
[1754618048344,0.002,3891.7,3891.4,6.2453]
[1754618048345,2.57158787,3891.7,3891.4,6.2453]
[1754618048550,6.49865043,3891.6,3891.5,2.4073]
[1754618051541,2.57158098,3891.7,3891.5,2.4073]
[1754618051740,0.002,3891.7,3891.6,2.4073]
[1754618051938,3.931,3891.7,3891.6,2.4073]
[1754618052272,2.57157113,3891.7,3891.6,2.4073]
[1754618053576,2.57157113,3891.7,3891.6,1.9753]
[1754618054985,2.56963716,3891.6,3891.5,4.271]
[1754618055489,6.49763716,3891.6,3891.5,4.271]
[1754618056503,9.91806233,3891.6,3891.5,4.271]
[1754618056992,7.64476233,3891.6,3891.5,4.271]
[1754618057290,7.77356233,3891.6,3891.5,4.271]
[1754618058190,7.77356233,3891.6,3891.5,0.001]
[1754618058561,7.77356233,3891.6,3891.5,1.9996]
[1754618058760,6.49763716,3891.6,3891.5,1.9996]
[1754618059182,6.49763716,3891.6,3891.5,0.001]
[1754618062867,6.94073716,3891.6,3891.5,0.001]
[1754618063072,8.77093716,3891.6,3891.5,0.001]
[1754618063302,9.91806233,3891.6,3891.5,0.001]
[1754618064402,7.64476233,3891.6,3891.5,0.001]
[1754618065181,9.85496233,3891.6,3891.5,0.001]